Cogmind - Beta 13 @@@ ROGUE MODE // 2024.04.25 @ 00:21:31 Player: Faunarr Result: Destroyed by S-27 Virus with Autogun Performance ------------- Evolutions (6) 3000 Regions Visited (16) 3200 Robots Destroyed (73) 365 Value Destroyed (2494) 2494 Prototype IDs (7) 140 Alien Tech Used (0) 0 Bonus (0) 0 TOTAL SCORE: 9199 Bonus ------- None Cogmind --------- Core Integrity 0/1150 Matter 289/300 Energy 99/100 System Corruption 8% Temperature Cool (0) Movement Core (50) Location -4/Factory Parts ------- > --- POWER (1) -------- (None) > --- PROPULSION (6) --- (None) > --- UTILITY (9) ------ (None) > --- WEAPON (3) ------- (None) > --- INVENTORY (5) ---- Xenon Bombardment Thruster Medium Storage Unit Authchip [R/Combat] Beamcaster Improved Plasma Cutter Peak State ------------ > --- POWER ------------ Improved Ion Engine > --- PROPULSION ------- Combat Airjet Combat Airjet Combat Airjet Combat Airjet Combat Airjet Combat Airjet > --- UTILITY ---------- Large Storage Unit Improved Signal Interpreter Advanced ECM Suite Improved Weapon Shielding Hacking Suite Hacking Suite > --- WEAPON ----------- Beamcaster Phase Cannon > --- INVENTORY -------- Combat Airjet Combat Airjet Combat Airjet Xenon Bombardment Thruster Medium Storage Unit Authchip [R/Combat] Precision Assault Rifle Flail [Rating: 62] Favorites ----------- Power Ion Engine Engine Ion Engine Power Core Light Nuclear Core Propulsion Light Treads Treads Light Treads Leg Improved Carbon-fiber Leg Wheel Wheel Hover Unit Combat Airjet Flight Unit Xenon Bombardment Thruster Utility Large Storage Unit Device Seismic Detector Storage Large Storage Unit Processor Improved Signal Interpreter Hackware Hacking Suite Protection Improved Utility Shielding Weapon Heavy Hammer Energy Gun Cooled Pulse Rifle Energy Cannon Phase Cannon Ballistic Gun Light Assault Rifle Ballistic Cannon Assault Cannon Launcher Rocket Array Special Weapon Improved Plasma Cutter Impact Weapon Heavy Hammer Piercing Weapon Spear Build | -11 -10 -9 -9 -9 -8 -8 -7 -7 -7 -6 -6 -6 -5 -5 -5 -4 ------- Run | Yrd Mat Mat Min Exi Min Mat Fac Low Low Fac Low Low Fac Upp Upp Fac Slots Evolved 12 | . . 2 . . . 2 2 . . 2 . . 2 . . 2 Power . | . . . . . . . . . . . . . . . . . Propulsion 4 | . . . . . . 1 1 . . 1 . . 1 . . . Utility 7 | . . 2 . . . 1 1 . . 1 . . 1 . . 1 Weapon 1 | . . . . . . . . . . . . . . . . 1 Parts Attached 114 | 8 3 14 . . 3 14 10 12 . 20 13 . 5 5 1 6 Power 10 | 1 . 1 . . . 1 . 1 . 4 2 . . . . . Engine 7 | 1 . 1 . . . 1 . 1 . 2 1 . . . . . Core 3 | . . . . . . . . . . 2 1 . . . . . Reactor . | . . . . . . . . . . . . . . . . . Propulsion 29 | 2 1 1 . . 1 5 1 3 . 6 1 . 3 3 . 2 Treads 8 | 1 1 1 . . . 3 1 1 . . . . . . . . Leg 2 | . . . . . . . . 2 . . . . . . . . Wheel 3 | 1 . . . . 1 1 . . . . . . . . . . Hover 13 | . . . . . . . . . . 6 1 . 2 3 . 1 Flight 3 | . . . . . . 1 . . . . . . 1 . . 1 Utility 30 | 2 2 6 . . . 3 4 1 . 7 4 . . . 1 . Device 10 | 1 1 4 . . . 1 . . . 2 1 . . . . . Storage 5 | 1 1 1 . . . . . . . 2 . . . . . . Processor 1 | . . . . . . . 1 . . . . . . . . . Hackware 3 | . . . . . . . . . . 3 . . . . . . Protection 11 | . . 1 . . . 2 3 1 . . 3 . . . 1 . Artifact . | . . . . . . . . . . . . . . . . . Weapon 45 | 3 . 6 . . 2 5 5 7 . 3 6 . 2 2 . 4 Energy Gun 6 | 2 . . . . . 1 . . . . 2 . . . . 1 Energy Cannon 2 | . . . . . . . . . . . 1 . 1 . . . Ballistic Gun 14 | 1 . 3 . . . 2 2 4 . 1 . . . 1 . . Ballistic Cannon 1 | . . . . . . 1 . . . . . . . . . . Launcher 7 | . . . . . 1 . 1 3 . . 2 . . . . . Special Weapon 1 | . . . . . . . . . . . . . . . . 1 Impact Weapon 12 | . . 3 . . 1 1 2 . . 2 1 . 1 . . 1 Slashing Weapon . | . . . . . . . . . . . . . . . . . Piercing Weapon 2 | . . . . . . . . . . . . . . 1 . 1 Special Melee Weapon . | . . . . . . . . . . . . . . . . . Unidentified Prototypes 5 | . . . . . . 2 2 . . . 1 . . . . . Parts Lost 44 | . . 6 . . 4 1 3 3 . 1 7 1 . 8 . 10 Power 6 | . . 1 . . 1 . . 1 . . 2 . . 1 . . Propulsion 16 | . . 1 . . 2 . 2 1 . . 1 . . 4 . 5 Utility 13 | . . 2 . . . . 1 1 . 1 3 1 . 2 . 2 Weapon 9 | . . 2 . . 1 1 . . . . 1 . . 1 . 3 Highest Loss Streak 7 | . . 2 . . 4 1 2 2 . 1 4 5 . 7 . 7 To Critical Strikes . | . . . . . . . . . . . . . . . . . Average Slot Usage (%) 88 | . 93 98 100 100 84 97 90 81 100 95 97 86 88 61 63 31 Engine 7 | . 14 10 11 11 3 9 7 7 7 6 2 6 5 . . . Treads 13 | . 25 21 22 22 8 17 18 8 15 3 . . . . . . Leg 1 | . . . . . . . . 3 15 3 . . . . . . Wheel 1 | . . . . . 6 8 2 . . . . . . . . . Hover 5 | . . . . . . . . . . 22 33 33 35 26 29 13 Device 16 | . 9 28 22 22 22 18 15 15 15 12 6 6 5 5 5 1 Storage 8 | . 14 11 11 11 11 9 7 7 7 6 6 6 5 5 5 3 Processor 3 | . . . . . . . 7 7 7 6 6 6 5 5 5 3 Hackware 2 | . . . . . . . . . . 17 19 13 11 5 5 3 Protection 9 | . . 3 11 11 11 18 14 14 15 1 4 6 5 . 4 2 Energy Gun 2 | . 14 1 . . . . 7 4 . . 2 6 2 . . . Ballistic Gun 8 | . 14 19 11 11 3 6 4 4 15 9 3 . . 3 . . Launcher 1 | . . . . . 1 . . 5 . . . . . . . . Impact Weapon 3 | . . 1 11 11 16 3 2 . . 2 5 . 3 2 . . Naked Turns 126 | . . . . . . . . . . . . . . . . 126 Heaviest Build 45 | 12 17 37 37 37 37 40 41 44 42 43 44 44 45 42 33 33 Greatest Support 72 | 20 40 40 40 40 40 10 40 48 48 60 60 60 72 72 36 48 Greatest Overweight (x) 9 | 3 . 1 . . 9 3 1 2 . 9 . . . 2 . 1 Average Overweight (x) . | . . . . . 1 3 . 1 . . . . . . . . Largest Inventory Capacity 15 | 8 10 15 15 15 15 15 15 15 15 15 15 15 15 15 15 15 Average Capacity 14 | 7 8 13 15 15 15 15 15 15 15 14 15 15 15 15 15 11 Most Carried 15 | 7 7 15 12 12 13 14 15 15 14 15 15 10 9 9 8 11 Average Carried 11 | 4 5 10 12 12 12 12 14 14 14 13 13 10 8 7 7 8 Final Capacity 15 | 8 10 15 15 15 15 15 15 15 15 15 15 15 15 15 15 5 Final Carried 15 | 5 7 12 12 12 13 14 15 14 14 15 10 10 9 7 8 5 Class Distribution -------------------- 88% | Mutant 11% | Hacker-Mutant Dominant Class ---------------- Mutant | -10/Materials Mutant | -9/Materials Mutant | -9/Mines Mutant | -9/Exiles Mutant | -8/Mines Mutant | -8/Materials Mutant | -7/Factory Mutant | -7/Lower Caves Mutant | -7/Lower Caves Hacker-Mutant | -6/Factory Hacker-Mutant | -6/Lower Caves Hacker-Mutant | -6/Lower Caves Hacker-Mutant | -5/Factory Mutant | -5/Upper Caves Mutant | -5/Upper Caves Mutant | -4/Factory Resources | -11 -10 -9 -9 -9 -8 -8 -7 -7 -7 -6 -6 -6 -5 -5 -5 -4 ----------- Run | Yrd Mat Mat Min Exi Min Mat Fac Low Low Fac Low Low Fac Upp Upp Fac Matter Collected 1998 | 319 . 364 10 . 41 276 176 303 . 65 102 . . 332 10 . Remotely . | . . . . . . . . . . . . . . . . . Salvage Created 2805 | 172 . 981 . . 325 61 452 391 . 73 305 . . 45 . . Parts 133 | 15 2 51 . . 10 2 14 18 . 3 14 . . 4 . . Haulers Intercepted 1 | . . 1 . . . . . . . . . . . . . . Recyclers Shooed 1 | . . . . . 1 . . . . . . . . . . . Parts Field Recycled . | . . . . . . . . . . . . . . . . . Retrieved Matter . | . . . . . . . . . . . . . . . . . Parts Self-Destructed 26 | . . . . . . . . 14 . . 6 . . 6 . . Prevented 6 | . . . . . . . . . . . . . . 4 2 . Kills | -11 -10 -9 -9 -9 -8 -8 -7 -7 -7 -6 -6 -6 -5 -5 -5 -4 ------- Run | Yrd Mat Mat Min Exi Min Mat Fac Low Low Fac Low Low Fac Upp Upp Fac Combat Hostiles Destroyed 61 | . . 21 . . 2 2 9 14 . 1 10 . . 2 . . Melee 2 | . . 1 . . 1 . . . . . . . . . . . Guns 36 | . . 19 . . . 1 9 4 . 1 . . . 2 . . Cannons 1 | . . . . . . 1 . . . . . . . . . . AOE 20 | . . . . . 1 . . 9 . . 10 . . . . . Classes Destroyed 12 | 2 1 5 . . 2 . . 1 . 1 . . . . . . Worker 2 | . 1 . . . . . . . . 1 . . . . . . Builder 1 | . . . . . 1 . . . . . . . . . . . Tunneler 4 | 4 . . . . . . . . . . . . . . . . Hauler 1 | . . 1 . . . . . . . . . . . . . . Recycler 4 | 1 . 1 . . 2 . . . . . . . . . . . Swarmer 16 | . . 4 . . . . . 5 . . 5 . . 2 . . Grunt 26 | . . 9 . . . . 8 7 . . 2 . . . . . Brawler 3 | . . 2 . . . . . . . . 1 . . . . . Duelist 3 | . . . . . . . . 1 . . 2 . . . . . Sentry 8 | . . 6 . . . 1 . 1 . . . . . . . . Hunter 4 | . . . . . 2 1 1 . . . . . . . . . Programmer 1 | . . . . . . . . . . 1 . . . . . . Best Kill Streak 7 | 5 1 5 . . 2 1 6 4 . 2 7 . . 2 . . Combat Bots Only 7 | . . 5 . . 1 1 6 4 . 1 7 . . 2 . . Max Kills in Single Turn 6 | 1 1 1 . . 1 1 1 3 . 1 6 . . 1 . . Gunslinging . | . . . . . . . . . . . . . . . . . Exploded 6 | . . . . . 1 . . 3 . . 6 . . . . . Melee 1 | . . 1 . . 1 . . . . . . . . . . . Uniques/NPCs Destroyed . | . . . . . . . . . . . . . . . . . Combat | -11 -10 -9 -9 -9 -8 -8 -7 -7 -7 -6 -6 -6 -5 -5 -5 -4 -------- Run | Yrd Mat Mat Min Exi Min Mat Fac Low Low Fac Low Low Fac Upp Upp Fac Hostile Shots Fired 701 | . . 115 . . 24 26 51 77 . 57 94 4 . 107 . 146 Missed 223 | . . 26 . . 4 4 9 32 . 19 36 1 . 27 . 65 Damage Taken 8183 | . . 1071 . . 372 579 669 659 . 527 1052 56 . 1205 . 1993 Core 2330 | . . 199 . . 111 63 110 117 . 149 128 . . 291 . 1162 Absorbed by Shields . | . . . . . . . . . . . . . . . . . Redirected to Shielding 207 | . . 16 . . 13 25 11 72 . . 22 11 . 37 . . Ignored by Resistances 30 | . . . . . . . 10 20 . . . . . . . . Regen/Repaired (Parts) 5 | . 1 . . . . 4 . . . . . . . . . . Core Remaining (%) 73 | 100 100 . . . 22 88 . . 67 . . 67 . . 70 . Volleys Fired 175 | 13 . 64 . . 7 15 33 19 . 7 3 . . 9 . 5 Largest 2 | 2 . 2 . . 1 2 2 2 . 2 2 . . 1 . 1 Hottest 120 | 60 . 60 . . 36 69 60 75 . 58 120 . . 85 . 81 Shots Fired 305 | 24 . 117 . . 7 30 65 30 . 13 5 . . 9 . 5 Gun 272 | 24 . 117 . . 3 15 65 26 . 13 2 . . 6 . 1 Cannon 18 | . . . . . . 15 . . . . . . . 3 . . Launcher 11 | . . . . . 4 . . 4 . . 3 . . . . . Special 4 | . . . . . . . . . . . . . . . . 4 Kinetic 228 | 13 . 112 . . 3 30 32 19 . 13 . . . 6 . . Thermal 66 | 11 . 5 . . . . 33 7 . . 2 . . 3 . 5 Explosive 11 | . . . . . 4 . . 4 . . 3 . . . . . Electromagnetic . | . . . . . . . . . . . . . . . . . Robot Hit Streak 23 | 5 . 18 . . 2 5 23 5 . 3 5 . . 2 . 3 Robot Miss Streak 5 | 5 . 2 . . 1 2 2 2 . 1 3 . . 2 . . Penetration Max . | . . . . . . . . . . . . . . . . . Secondary Targets 3 | . . 2 . . . . . . . 1 . . . . . . Max Gunslinging Chain 1 | . . 1 . . . . . . . 1 . . . . . . Shots Hit Robots 234 | 12 . 96 . . 15 19 52 18 . 8 6 . . 7 . 1 Core Hits 137 | 6 . 41 . . 4 4 20 30 . 3 27 . . 2 . . Critical Kills 2 | . . 1 . . . . 1 . . . . . . . . . Critical Parts Destroyed 3 | . . 2 . . . . . . . . . . . 1 . . Critical Strikes 9 | . . 4 . . . . 3 . . . . . . 1 . 1 Burn 3 | . . . . . . . 2 . . . . . . . . 1 Destroy 2 | . . 1 . . . . 1 . . . . . . . . . Smash 4 | . . 3 . . . . . . . . . . . 1 . . Melee Attacks 92 | . . 6 . . 14 14 5 . . 31 3 . 3 8 . 8 Impact 85 | . . 6 . . 14 14 5 . . 31 3 . 3 8 . 1 Slashing . | . . . . . . . . . . . . . . . . . Piercing 7 | . . . . . . . . . . . . . . . . 7 Sneak Attacks 5 | . . 1 . . 4 . . . . . . . . . . . Combat Hostiles . | . . . . . . . . . . . . . . . . . Follow-up Attacks 2 | . . . . . 2 . . . . . . . . . . . Damage Inflicted 6084 | 137 2 1209 . . 860 364 902 1138 . 223 1017 . . 182 . 50 Guns 2940 | 137 . 1027 . . 10 166 897 337 . 223 20 . . 98 . 25 Cannons 227 | . . . . . . 198 . . . . . . . 29 . . Explosions 1914 | . . . . . 177 . . 801 . . 936 . . . . . Melee 953 | . . 164 . . 673 . . . . . 61 . . 55 . . Ramming 50 | . 2 18 . . . . 5 . . . . . . . . 25 Kinetic 2347 | 93 . 973 . . 10 364 344 242 . 223 . . . 98 . . Thermal 820 | 44 . 54 . . . . 553 95 . . 20 . . 29 . 25 Explosive 1914 | . . . . . 177 . . 801 . . 936 . . . . . Electromagnetic . | . . . . . . . . . . . . . . . . . Impact 953 | . . 164 . . 673 . . . . . 61 . . 55 . . Slashing . | . . . . . . . . . . . . . . . . . Piercing . | . . . . . . . . . . . . . . . . . Highest Corruption 8 | . . . . . . 5 . . . 2 2 2 . . . 8 Average Corruption 3 | . . . . . . 5 . . . 1 2 2 . . . 6 Corruption Purged . | . . . . . . . . . . . . . . . . . Corruption Blocked . | . . . . . . . . . . . . . . . . . Effects 22 | . . . . . . 5 . . . 5 6 1 . . . 5 Message Errors 5 | . . . . . . 1 . . . 2 1 . . . . 1 Matter Fused 3 | . . . . . . 1 . . . . 2 . . . . . Heat Flow Errors 2 | . . . . . . . . . . 1 . . . . . 1 Energy Discharges 4 | . . . . . . . . . . . 2 . . . . 2 Parts Rejected 2 | . . . . . . 1 . . . 1 . . . . . . Data Loss (minor) 2 | . . . . . . . . . . . 1 . . . . 1 Data Loss (major) 4 | . . . . . . 2 . . . 1 . 1 . . . . Overload Shots 1 | . . . . . . . 1 . . . . . . . . . Overflow Damage 252 | . . 40 . . 182 . . . . . 10 . . 20 . . Projectiles . | . . . . . . . . . . . . . . . . . Explosions 10 | . . . . . . . . . . . 10 . . . . . Melee 242 | . . 40 . . 182 . . . . . . . . 20 . . Knockbacks 4 | . . . . . 1 3 . . . . . . . . . . Impact 1 | . . . . . 1 . . . . . . . . . . . Kinetic 3 | . . . . . . 3 . . . . . . . . . . Secondary . | . . . . . . . . . . . . . . . . . Self-Inflicted Damage 245 | . . . . . 40 . . 151 . . 43 . . . . 11 Shots 12 | . . . . . 2 . . 7 . . 3 . . . . . Rammed 13 | . . 6 . . . . 2 . . 1 . . . . . 4 Targets Rammed 14 | . 1 6 . . . . 2 . . 1 . . . . . 4 Kicked . | . . . . . . . . . . . . . . . . . Crushed 1 | . 1 . . . . . . . . . . . . . . . Highest Temperature 203 | . . 13 . . . 44 15 27 . 84 203 . . 8 . 176 Average Temperature 21 | . . 4 . . . 21 7 3 . 31 52 . . 4 . 56 Received Heat Transfer 1594 | . . 348 . . . 27 378 162 . 9 312 27 . . . 331 Siege Activations . | . . . . . . . . . . . . . . . . . Robots Corrupted . | . . . . . . . . . . . . . . . . . Combat Hostiles . | . . . . . . . . . . . . . . . . . Parts Fried 1 | . . . . . 1 . . . . . . . . . . . Impact Corruptions 9 | . . 2 . . 6 . . . . . . . . 1 . . Robots Melted 1 | . . . . . . . . 1 . . . . . . . . Combat Hostiles 1 | . . . . . . . . 1 . . . . . . . . Parts Melted 6 | . . . . . . . 5 1 . . . . . . . . Heat Transferred 1816 | 100 . 125 . . . . 1221 185 . . 37 . . 37 . 111 Parts Sabotaged . | . . . . . . . . . . . . . . . . . Parts Stolen . | . . . . . . . . . . . . . . . . . Parts Stripped . | . . . . . . . . . . . . . . . . . Power Chain Reactions . | . . . . . . . . . . . . . . . . . Alert | -11 -10 -9 -9 -9 -8 -8 -7 -7 -7 -6 -6 -6 -5 -5 -5 -4 ------- Run | Yrd Mat Mat Min Exi Min Mat Fac Low Low Fac Low Low Fac Upp Upp Fac Peak Influence 367 | 25 26 296 100 . 104 95 138 . . 169 . . 169 . . 367 Initial 155 | . 16 10 100 . . . 7 . . 79 . . 155 . . 86 Average 77 | 10 19 151 100 . 27 30 20 . . 83 . . 157 . . 148 Maximum Alert Level 1 | . . 1 . . . . . . . . . . . . . 1 Low Security (%) 91 | 100 100 76 100 . 100 100 100 . . 100 . . 100 . . 76 Level 1 8 | . . 23 . . . . . . . . . . . . . 23 Level 2 . | . . . . . . . . . . . . . . . . . Level 3 . | . . . . . . . . . . . . . . . . . Level 4 . | . . . . . . . . . . . . . . . . . Level 5 . | . . . . . . . . . . . . . . . . . High Security . | . . . . . . . . . . . . . . . . . Max Security . | . . . . . . . . . . . . . . . . . Squads Dispatched 18 | . 1 3 . . . 2 2 . . 7 . . 1 . . 2 Investigation 6 | . . 1 . . . . 1 . . 3 . . 1 . . . Extermination 4 | . . . . . . . 1 . . 2 . . . . . 1 Reinforcement 8 | . 1 2 . . . 2 . . . 2 . . . . . 1 Assault . | . . . . . . . . . . . . . . . . . Garrison . | . . . . . . . . . . . . . . . . . Intercept . | . . . . . . . . . . . . . . . . . Searches Triggered . | . . . . . . . . . . . . . . . . . Construction Impeded . | . . . . . . . . . . . . . . . . . Haulers Reinforced . | . . . . . . . . . . . . . . . . . Active Scanning Responses . | . . . . . . . . . . . . . . . . . Cargo Convoy Interrupts . | . . . . . . . . . . . . . . . . . Stealth | -11 -10 -9 -9 -9 -8 -8 -7 -7 -7 -6 -6 -6 -5 -5 -5 -4 --------- Run | Yrd Mat Mat Min Exi Min Mat Fac Low Low Fac Low Low Fac Upp Upp Fac Distress Signals 5 | . . 4 . . . . . . . . . . . . . 1 Communications Jammed . | . . . . . . . . . . . . . . . . . Distress Signals . | . . . . . . . . . . . . . . . . . Times Spotted 158 | . 1 35 . . 2 4 9 14 . 13 34 5 . 12 . 29 Peak Tracking Total 17 | . . 7 . . 1 2 6 4 . 7 12 4 . 5 . 17 Tactical Retreats 26 | . . 1 . . . . . . . 6 8 1 . 4 . 6 Traps | -11 -10 -9 -9 -9 -8 -8 -7 -7 -7 -6 -6 -6 -5 -5 -5 -4 ------- Run | Yrd Mat Mat Min Exi Min Mat Fac Low Low Fac Low Low Fac Upp Upp Fac Traps Triggered 1 | . . . . . . 1 . . . . . . . . . . Indirectly . | . . . . . . . . . . . . . . . . . Trap Hack Attempts . | . . . . . . . . . . . . . . . . . Triggered . | . . . . . . . . . . . . . . . . . Disarmed . | . . . . . . . . . . . . . . . . . Reprogrammed . | . . . . . . . . . . . . . . . . . Reused . | . . . . . . . . . . . . . . . . . Traps Extracted . | . . . . . . . . . . . . . . . . . Installed . | . . . . . . . . . . . . . . . . . Triggered 3 | . . . . . . . . . . . 3 . . . . . Machines | -11 -10 -9 -9 -9 -8 -8 -7 -7 -7 -6 -6 -6 -5 -5 -5 -4 ---------- Run | Yrd Mat Mat Min Exi Min Mat Fac Low Low Fac Low Low Fac Upp Upp Fac Machines Disabled 2 | . . 1 . . . . . . . 1 . . . . . . Max in Single Turn 1 | . . 1 . . . . . . . 1 . . . . . . Machines Repaired . | . . . . . . . . . . . . . . . . . Machines Dismantled . | . . . . . . . . . . . . . . . . . Machines Sabotaged . | . . . . . . . . . . . . . . . . . Overloaded Fab Kills . | . . . . . . . . . . . . . . . . . Hacking | -11 -10 -9 -9 -9 -8 -8 -7 -7 -7 -6 -6 -6 -5 -5 -5 -4 --------- Run | Yrd Mat Mat Min Exi Min Mat Fac Low Low Fac Low Low Fac Upp Upp Fac Machines Accessed 19 | . 2 5 . 2 . 2 1 1 . 4 . . 1 . . 1 Terminals 10 | . . 3 . . . 1 1 . . 3 . . 1 . . 1 Fabricators . | . . . . . . . . . . . . . . . . . Repair Stations 2 | . 1 . . . . 1 . . . . . . . . . . Recycling Units 2 | . 1 1 . . . . . . . . . . . . . . Scanalyzers 2 | . . 1 . . . . . . . 1 . . . . . . Garrison Access . | . . . . . . . . . . . . . . . . . Total Hacks 45 | . 5 13 . 2 . 3 3 1 . 14 . . 3 . . 1 Successful 21 | . 3 7 . 2 . 2 1 1 . 4 . . 1 . . . Failed 24 | . 2 6 . . . 1 2 . . 10 . . 2 . . 1 Catastrophic 6 | . . 1 . . . 1 1 . . 1 . . 1 . . 1 Database Lockouts . | . . . . . . . . . . . . . . . . . Manual 25 | . . 8 . . . 1 2 . . 11 . . 2 . . 1 Terminals 28 | . . 9 . . . 1 3 . . 11 . . 3 . . 1 Fabricators . | . . . . . . . . . . . . . . . . . Repair Stations 6 | . 4 . . . . 2 . . . . . . . . . . Recycling Units 3 | . 1 2 . . . . . . . . . . . . . . Scanalyzers 5 | . . 2 . . . . . . . 3 . . . . . . Garrison Access . | . . . . . . . . . . . . . . . . . Terminal Hacks 13 | . . 4 . 2 . . 1 1 . 4 . . 1 . . . Record 3 | . . 1 . 2 . . . . . . . . . . . . Prototype ID Bank 1 | . . 1 . . . . . . . . . . . . . . Open Door 1 | . . . . . . . . 1 . . . . . . . . Branch Access Points 1 | . . . . . . . . . . 1 . . . . . . Emergency Access Points 2 | . . 1 . . . . . . . . . . 1 . . . Unreport Threat 1 | . . . . . . . . . . 1 . . . . . . Locate Traps 2 | . . . . . . . 1 . . 1 . . . . . . Recall Extermination 1 | . . . . . . . . . . 1 . . . . . . Hauler Manifests 1 | . . 1 . . . . . . . . . . . . . . Fabricator Hacks . | . . . . . . . . . . . . . . . . . Repair Station Hacks 4 | . 2 . . . . 2 . . . . . . . . . . Scan Component 2 | . 1 . . . . 1 . . . . . . . . . . Repair 2 | . 1 . . . . 1 . . . . . . . . . . Recycling Unit Hacks 2 | . 1 1 . . . . . . . . . . . . . . Report Inventory 1 | . 1 . . . . . . . . . . . . . . . Retrieve Components 1 | . . 1 . . . . . . . . . . . . . . Scanalyzer 2 | . . 2 . . . . . . . . . . . . . . Insert Component 1 | . . 1 . . . . . . . . . . . . . . Analyze 1 | . . 1 . . . . . . . . . . . . . . Garrison Access Hacks . | . . . . . . . . . . . . . . . . . Unauthorized Hacks . | . . . . . . . . . . . . . . . . . Terminals . | . . . . . . . . . . . . . . . . . Fabricators . | . . . . . . . . . . . . . . . . . Repair Stations . | . . . . . . . . . . . . . . . . . Recycling Units . | . . . . . . . . . . . . . . . . . Scanalyzers . | . . . . . . . . . . . . . . . . . Garrison Access . | . . . . . . . . . . . . . . . . . Data Cores Recovered . | . . . . . . . . . . . . . . . . . Used . | . . . . . . . . . . . . . . . . . Hacking Detections 10 | . . 2 . . . 1 1 . . 4 . . 1 . . 1 Full Trace Events 7 | . . 2 . . . . 1 . . 3 . . 1 . . . Feedback Events 1 | . . . . . . . . . . 1 . . . . . . Corruption 1 | . . . . . . . . . . 1 . . . . . . Feedback Blocked . | . . . . . . . . . . . . . . . . . Robot Schematics Acquired . | . . . . . . . . . . . . . . . . . Robots Built . | . . . . . . . . . . . . . . . . . Authchips . | . . . . . . . . . . . . . . . . . Time . | . . . . . . . . . . . . . . . . . Total Robot Build Rating . | . . . . . . . . . . . . . . . . . Part Schematics Acquired 1 | . . 1 . . . . . . . . . . . . . . Parts Built . | . . . . . . . . . . . . . . . . . Authchips . | . . . . . . . . . . . . . . . . . Time . | . . . . . . . . . . . . . . . . . Total Part Build Rating . | . . . . . . . . . . . . . . . . . Parts Repaired 2 | . 1 . . . . 1 . . . . . . . . . . Time 52 | . 26 . . . . 26 . . . . . . . . . . Parts Recycled . | . . . . . . . . . . . . . . . . . Recycled Matter . | . . . . . . . . . . . . . . . . . Retrieved Matter . | . . . . . . . . . . . . . . . . . Retrieved Components 9 | . . 9 . . . . . . . . . . . . . . Parts Scanalyzed 1 | . . 1 . . . . . . . . . . . . . . Part Schematics Acquired 1 | . . 1 . . . . . . . . . . . . . . Parts Damaged 1 | . . 1 . . . . . . . . . . . . . . Bothacking | -11 -10 -9 -9 -9 -8 -8 -7 -7 -7 -6 -6 -6 -5 -5 -5 -4 ------------ Run | Yrd Mat Mat Min Exi Min Mat Fac Low Low Fac Low Low Fac Upp Upp Fac Used RIF Installer . | . . . . . . . . . . . . . . . . . Robots Hacked . | . . . . . . . . . . . . . . . . . Non-combat . | . . . . . . . . . . . . . . . . . Combat . | . . . . . . . . . . . . . . . . . Robot Hacks Applied . | . . . . . . . . . . . . . . . . . Relay Couplers Released . | . . . . . . . . . . . . . . . . . Fabnet Peak Effective % . | . . . . . . . . . . . . . . . . . Robots Rewired . | . . . . . . . . . . . . . . . . . Allies Hacked . | . . . . . . . . . . . . . . . . . Hacks Repelled . | . . . . . . . . . . . . . . . . . Allies | -11 -10 -9 -9 -9 -8 -8 -7 -7 -7 -6 -6 -6 -5 -5 -5 -4 -------- Run | Yrd Mat Mat Min Exi Min Mat Fac Low Low Fac Low Low Fac Upp Upp Fac Total Allies . | . . . . . . . . . . . . . . . . . Largest Group . | . . . . . . . . . . . . . . . . . Highest-Rated Group . | . . . . . . . . . . . . . . . . . Highest-Rated Ally . | . . . . . . . . . . . . . . . . . Total Orders . | . . . . . . . . . . . . . . . . . Ally Attacks . | . . . . . . . . . . . . . . . . . Total Damage . | . . . . . . . . . . . . . . . . . Kills . | . . . . . . . . . . . . . . . . . Allies Corrupted . | . . . . . . . . . . . . . . . . . Allies Melted . | . . . . . . . . . . . . . . . . . Intel | -11 -10 -9 -9 -9 -8 -8 -7 -7 -7 -6 -6 -6 -5 -5 -5 -4 ------- Run | Yrd Mat Mat Min Exi Min Mat Fac Low Low Fac Low Low Fac Upp Upp Fac Robot Analysis Total . | . . . . . . . . . . . . . . . . . Derelict Logs Recovered 6 | . . . 1 . . . . . 1 . 2 1 . . 1 . Drone Launches . | . . . . . . . . . . . . . . . . . Drone Recoveries . | . . . . . . . . . . . . . . . . . Exploration | -11 -10 -9 -9 -9 -8 -8 -7 -7 -7 -6 -6 -6 -5 -5 -5 -4 ------------- Run | Yrd Mat Mat Min Exi Min Mat Fac Low Low Fac Low Low Fac Upp Upp Fac Turns Passed 8904 | 122 341 1321 87 1372 427 760 852 1617 81 561 398 31 54 236 274 370 Spaces Moved 5615 | 53 190 610 55 858 282 402 283 583 50 493 545 46 60 237 367 501 Core 278 | 24 . . . . 3 . . . . 1 . . . . . 250 Treads 2699 | 29 190 610 55 858 88 . 283 445 50 91 . . . . . . Legs 138 | . . . . . . . . 138 . . . . . . . . Wheels 593 | . . . . . 191 402 . . . . . . . . . . Hover 1907 | . . . . . . . . . . 401 545 46 60 237 367 251 Flight . | . . . . . . . . . . . . . . . . . Fastest Speed 50 | 50 160 160 160 160 110 125 170 165 165 63 63 68 65 65 74 50 Average Speed 135 | 122 160 160 160 160 132 125 233 265 165 85 66 68 65 80 74 64 Slowest Speed 500 | 200 160 240 160 160 500 125 250 330 165 500 68 68 65 220 74 147 Overloaded Moves . | . . . . . . . . . . . . . . . . . Propulsion Burnouts . | . . . . . . . . . . . . . . . . . Robots Hopped . | . . . . . . . . . . . . . . . . . Cave-ins Triggered 2 | . . . . . . 1 . . . . . . . . . 1 Exploration Rate (%) 33 | 4 35 49 27 92 56 33 7 70 7 17 74 13 3 39 32 18 Regions Visited 16 Branch Regions 9 Pre-discovered Areas 1 | . . . . . . . . . . . 1 . . . . . Known Exits Taken 9 | . . . . . . . 1 1 1 1 1 1 1 1 1 . Unknown Exits Taken 7 | 1 1 1 1 1 1 1 . . . . . . . . . . Scrap Searched 10 | . . . 1 . 1 . . 1 . . 3 . . 2 2 . Spaces Dug 105 | . . . . . 9 14 4 44 . 27 . . 2 . . 5 Terrain Destroyed 247 | . . . . . 39 19 4 101 . 27 46 . 2 4 . 5 Melee 51 | . . . . . . 14 3 . . 27 . . 2 . . 5 Projectile 11 | . . . . . . 5 1 1 . . . . . 4 . . AOE 185 | . . . . . 39 . . 100 . . 46 . . . . . Terrain Rammed . | . . . . . . . . . . . . . . . . . Walls Destroyed . | . . . . . . . . . . . . . . . . . Machines Disabled . | . . . . . . . . . . . . . . . . . Actions | -11 -10 -9 -9 -9 -8 -8 -7 -7 -7 -6 -6 -6 -5 -5 -5 -4 --------- Run | Yrd Mat Mat Min Exi Min Mat Fac Low Low Fac Low Low Fac Upp Upp Fac Total 6445 | 88 226 836 54 857 309 606 400 617 49 565 567 45 68 260 369 529 Wait 344 | . 29 108 . . 3 151 50 2 . . . . . . . 1 Move 5598 | 52 189 609 54 857 281 400 282 582 49 492 544 45 59 236 366 501 Hop . | . . . . . . . . . . . . . . . . . Pick Up 77 | 12 4 19 . . 3 10 10 2 . 7 3 . 1 1 2 3 Fast Attach 10 | . . . . . . 1 2 2 . 5 . . . . . . Attach 58 | 8 2 8 . . 2 9 3 3 . 4 8 . 2 4 1 4 Detach 7 | 2 . . . . . 1 . . . 2 . . . 1 . 1 Swap 46 | . 1 6 . . 1 4 5 7 . 11 5 . 3 1 . 2 Drop 25 | 1 . 10 . . . . 8 . . 5 1 . . . . . Fire 175 | 13 . 64 . . 7 15 33 19 . 7 3 . . 9 . 5 Melee 90 | . . 6 . . 12 14 5 . . 31 3 . 3 8 . 8 Ram 4 | . . . . . . . . . . . . . . . . 4 Kick . | . . . . . . . . . . . . . . . . . Crush 10 | . 1 6 . . . . 2 . . 1 . . . . . . Escape Stasis 1 | . . . . . . 1 . . . . . . . . . . Rewire . | . . . . . . . . . . . . . . . . . Trap . | . . . . . . . . . . . . . . . . . Miscellaneous . | . . . . . . . . . . . . . . . . . Route ------- -11/Scrapyard -10/Materials -9/Materials -9/Mines -9/Exiles (discovered 2 exits: [*Min x2]) -8/Mines -8/Materials -7/Factory -7/Lower Caves -7/Lower Caves -6/Factory (discovered 2 exits: *Low x2) -6/Lower Caves -6/Lower Caves -5/Factory -5/Upper Caves -5/Upper Caves -4/Factory History --------- Turn | Location | Event 10 | -11/Scrapyard | Discovered new exit (range 15) 123 | -11/Scrapyard | Entered Materials 291 | -10/Materials | Repaired Seismic Detector 314 | -10/Materials | Build established: Mutant 380 | -10/Materials | Discovered new exit (range 10) 464 | -10/Materials | Entered another Materials area 464 | -9/Materials | Evolved 2 slots: Utility x2 1751 | -9/Materials | Discovered new exit (range 8) 1785 | -9/Materials | Entered Mines 1830 | -9/Mines | Learned Materials emergency access door positions 1862 | -9/Mines | Deemed a non-threat by the Exiles lab entrance 1864 | -9/Mines | Discovered new exit (range 5) 1872 | -9/Mines | Entered Exiles 1872 | -9/Exiles | Found Exiles lab abandoned 2906 | -9/Exiles | Discovered new exit (range 10) 3217 | -9/Exiles | Discovered new exit (range 15) 3244 | -9/Exiles | Entered Mines 3396 | -8/Mines | Core integrity fell below 50% 3436 | -8/Mines | Lost 4 parts (1p2n1w) 3662 | -8/Mines | Discovered new exit (range 5) 3671 | -8/Mines | Entered Materials 3671 | -8/Materials | Evolved 2 slots: Propulsion x1, Utility x1 3950 | -8/Materials | Repaired Terrain Scanner 4261 | -8/Materials | Crushed by falling debris 4398 | -8/Materials | Discovered new exit (range 16) 4431 | -8/Materials | Entered Factory 4431 | -7/Factory | Evolved 2 slots: Propulsion x1, Utility x1 5227 | -7/Factory | Found Prototype Launcher 5228 | -7/Factory | Identified Rocket Array 5233 | -7/Factory | Discovered new exit (range 7) 5281 | -7/Factory | Identified exit to Lower Caves 5283 | -7/Factory | Entered Lower Caves 5285 | -7/Lower Caves | Attracted the attention of an 0b10 checkpoint 5720 | -7/Lower Caves | Encountered a Warlord checkpoint 6738 | -7/Lower Caves | Discovered new exit (range 11) 6756 | -7/Lower Caves | Identified exit to Lower Caves 6900 | -7/Lower Caves | Entered another Lower Caves area 6914 | -7/Lower Caves | Learned Factory trap positions 6965 | -7/Lower Caves | Discovered new exit (range 8) 6975 | -7/Lower Caves | Identified exit to Factory 6981 | -7/Lower Caves | Entered Factory 6981 | -6/Factory | Evolved 2 slots: Propulsion x1, Utility x1 6982 | -6/Factory | Loaded intel: 97 trap records 7224 | -6/Factory | Identified exit to Lower Caves 7342 | -6/Factory | Build established: Hacker-Mutant 7542 | -6/Factory | Entered Lower Caves 7621 | -6/Lower Caves | Attracted the attention of an 0b10 checkpoint 7882 | -6/Lower Caves | Learned location of Zion (-6) 7888 | -6/Lower Caves | Learned Factory interactive machine intel 7902 | -6/Lower Caves | Attracted the attention of an 0b10 outpost 7937 | -6/Lower Caves | Discovered new exit (range 5) 7939 | -6/Lower Caves | Destroyed 7 combat bots 7939 | -6/Lower Caves | Identified exit to Lower Caves 7940 | -6/Lower Caves | Entered another Lower Caves area 7956 | -6/Lower Caves | Learned Factory interactive machine intel 7964 | -6/Lower Caves | Discovered new exit (range 11) 7970 | -6/Lower Caves | Identified exit to Factory 7971 | -6/Lower Caves | Entered Factory 7971 | -5/Factory | Evolved 2 slots: Propulsion x1, Utility x1 7972 | -5/Factory | Loaded intel: 53 interactive machine locations 7972 | -5/Factory | Lost 5 parts (1p3u1w) 8022 | -5/Factory | Discovered new exit (range 4) 8024 | -5/Factory | Identified exit to Upper Caves 8025 | -5/Factory | Entered Upper Caves 8111 | -5/Upper Caves | Lost 7 parts (1p4n2u) 8224 | -5/Upper Caves | Spotted B-75 Beast 8247 | -5/Upper Caves | Discovered new exit (range 11) 8260 | -5/Upper Caves | Identified exit to Upper Caves 8261 | -5/Upper Caves | Entered another Upper Caves area 8262 | -5/Upper Caves | Discovered new exit (range 12) 8288 | -5/Upper Caves | Learned Factory trap positions 8340 | -5/Upper Caves | Identified exit to Factory 8355 | -5/Upper Caves | Build established: Mutant 8535 | -5/Upper Caves | Entered Factory 8535 | -4/Factory | Evolved 2 slots: Utility x1, Weapon x1 8536 | -4/Factory | Loaded intel: 108 trap records 8537 | -4/Factory | Loaded intel: 52 interactive machine locations 8678 | -4/Factory | Crushed by falling debris 8753 | -4/Factory | Lost 7 parts (3n2u2w) 8779 | -4/Factory | Released all parts (4) 8797 | -4/Factory | Spotted B-86 Titan 8799 | -4/Factory | Core integrity fell below 50% 8810 | -4/Factory | Lost 3 parts (2n1w) 8829 | -4/Factory | Core integrity fell below 20% 8905 | -4/Factory | Destroyed by S-27 Virus with Autogun Last Messages --------------- 08818_ System corrupted: Heat flow error (+219). 08818_ The unstable cave ceiling collapses. 08819_ Slug penetrates Neutrino Reactor. 08819_ Neutrino Reactor explodes. 08819_ U-05 Engineer lays Concrete. 08821_ P-70 Sage resets U-05 Engineer, system corruption cleaned. 08822_ P-70 Sage resets P-70 Sage, system corruption cleaned. 08823_ Neutrino Reactor explodes. 08823_ Hellfire Trap short circuited. 08823_ An explosion rips through the floor. 08823_ Neutrino Reactor explodes. 08828_ Critical hit (Burn: +37). 08828_ P-70 Sage resets W-44 Eye, system corruption cleaned. 08836_ System corrupted: Component data lost. 08886_ System corrupted: Energy discharge (-34). 08894_ Slammed into S-27 Virus. 08894_ Destabilizing: Core damaged (-46). Map ----- +----------------------------------------------------+ | ?????????????????????????????????????????????????? | | ?????????????????????????????????????????????????? | | ?????????????????????????????????????????????????? | | ?????????????????????????????????????????????????? | | ?????????????????????????????????????????????????? | | ?????????????????????????????????????????????????? | | ?????????????????????????????????????????????????? | | ?????????????????????????????????????????????????? | | ?????????????????????????????????????????????????? | | ?????????????????????????????????????????????????? | | ?????????????????????????????????????????????????? | | ?????????????????????????????????????????????????? | | ?????????????????????????????????????????????????? | | ?????????????????????????????????????????????????? | | ?????????????????????????????????????????????????? | | ?????????????????????????????????????????????????? | | ?????????????????????????????????????????????????? | | ?????????????????????????????????????????????????? | | ?????????????????????????????????????????????????? | | ??????????????#############??????????????????????? | | ??????????????? #??????????????????????? | | ???????????????? #??????????????????????? | | ????????????????? #???? #????????????????? | | ????????????????? """ #?? #????????????????? | | ?????????????#? """"" # #????????????????? | | ?????????????# """"" @/ +????????????????? | | ?????????????# # #????????????????? | | ?????????????# """ #?? #????????????????? | | ?????????????# """"" #???? #????????????????? | | ?????????????# """"" s #??????????????????????? | | ?????????????# s #??????????????????????? | | ?????????????# s #??????????????????????? | | ?????????????#########s####??????????????????????? | | ?????????????# ## #?????????????????????????? | | ?????????????# ## #?????????????????????????? | | ?????????????# ## #?????????????????????????? | | ?????????????# ## #?????????????????????????? | | ?????####+#####+###### #### #?????????????? | | ?????# #?????????????? | | ?????# #?????????????? | | ?????# """ """" """" """" #?????????????? | | ?????# """ """" """" """" #?????????????? | | ?????# """ """" """" """" ! #?????????????? | | ?????# """" """" """" ??????????????? | | ?????# """" """" """"? #?????????????? | | ?????# """" """" """"????? ????????????????? | | ?????# """" """" """" "T"????????????????? | | ?????# """????????????????? | | ?????# ?????????????????? | | ?????# ?????^^??????????? | +----------------------------------------------------+ Best States ------------- Heat Dissipation 43 Energy Generation 18 Energy Capacity 300 Matter Stores 300 Matter Capacity 300 Sight Range 16 Robot Scan Range 14 Terrain Scan Range 16 Terrain Scan Density 10 ECM Strength 2 Armor Coverage 225 Resistance: TH 10 Utility Shielding 66 Weapon Shielding 66 Evasion (%) 52 Recoil Reduction 2 Offensive Hacking 30 Authchip Count 1 Item Schematics ----------------- Signal Interpreter | -9/Materials | Scanalyzed Robot Schematics ------------------ None Fabricated ------------ Nothing Alien Tech Used ----------------- None Achievements -------------- Part-time Mechanic Quick And Dirty Shopping List Challenges ------------ None Game ------ Seed StormAblativeMicroactuators Manual? 0 Play Time 01:27:08 Cumulative 12.5 hours Start 2024.04.24 @ 22:55:57 End 2024.04.25 @ 00:21:31 Sessions 1 Manual Loads 0 Difficulty Rogue Special Mode None Game No. 25 Rogue 25 Adventurer 0 Explorer 0 Win Type - Total 0 Types 0/0/0/0/0/0/0/0/0 Lore% 18 Gallery% 18 Achievement% 16 Wizard Run 0 Options --------- Layout 1 ASCII 0 Keyboard 0 Movement Vi Keybinds 0 Fullscreen 2 Font 24/Smallcaps Map View 50x35 Zoom Use 0% Tactical HUD 1 Map Filters NONE Filters NONE Steam 1 RUN: 5cc3f372-f79c-4a7c-86e9-8d3cc872dddb